fUSD/lending_fUSD_20240118
["ID","MTS","AMOUNT","RATE_DAILY","PERIOD"]
[312098980,1705618336238,39848.2861,0.00021507,2]
[312098981,1705618345712,2500.0,0.00021507,2]
[312098982,1705618353362,155.0,0.00021599,2]
[312098983,1705618353395,1728.0692,0.00021501,2]
[312098984,1705618354891,14867.4261,0.00021501,2]
[312098985,1705618355832,337.02257308,0.00021599,2]
[312098987,1705618377417,5000.0,0.00021505,2]
[312098989,1705618380552,9171.2449,0.00021504,2]
[312098990,1705618382577,1191.8125891,0.00021599,2]
[312098991,1705618384700,239.39981006,0.00021599,2]
[312098993,1705618385141,294.11333927,0.00021599,2]
[312098994,1705618385225,1866.3407,0.00021501,2]
[312098995,1705618385336,1050.58506121,0.00021599,2]
[312098996,1705618385650,1526.55080948,0.0002,2]
[312098997,1705618385734,2144.43375818,0.00021599,2]
[312098998,1705618385767,155.0,0.00021599,2]
[312098999,1705618385822,230.3513771,0.00021599,2]
[312099000,1705618386302,238.62522495,0.00021599,2]
[312099001,1705618386341,3030.11138034,0.00021599,2]
[312099002,1705618386368,159.23180862,0.00021599,2]
[312099003,1705618386412,155.29862635,0.00021599,2]
[312099004,1705618387298,514.98040546,0.00021599,2]
[312099005,1705618387513,155.0,0.00021599,2]
[312099006,1705618388224,155.15859743,0.00021599,2]
[312099007,1705618388399,1000.0,0.00021442,2]
[312099008,1705618388742,290.04601327,0.00021599,2]
[312099009,1705618388992,12643.71063377,0.00021599,2]
[312099010,1705618389094,155.0,0.00021599,2]
[312099011,1705618389771,157.14140716,0.00021599,2]
[312099012,1705618389964,245000.0,0.00021501,2]
[312099013,1705618390039,156.3108793,0.00021599,2]
[312099014,1705618390072,295.40555488,0.00021599,2]
[312099015,1705618390100,280.623262,0.00021599,2]
[312099016,1705618391150,209.58561011,0.00021599,2]
[312099017,1705618391338,155.000002,0.00021599,2]
[312099018,1705618391709,1175.41173405,0.00021599,2]
[312099019,1705618391736,155.68058134,0.00021599,2]
[312099020,1705618392637,155.46061106,0.00021599,2]
[312099021,1705618392861,194.45301712,0.00021599,2]
[312099022,1705618392887,204.39760323,0.00021599,2]
[312099023,1705618393002,177.16581873,0.00021599,2]
[312099024,1705618393042,155.28081688,0.00021599,2]
[312099025,1705618393652,581.48502557,0.00021599,2]
[312099026,1705618394041,156.23379136,0.00021599,2]
[312099027,1705618394081,230.58874034,0.00021599,2]
[312099028,1705618394226,155.41219897,0.00021599,2]
[312099029,1705618394293,21486.34484734,0.00021599,2]
[312099030,1705618395150,273.55023891,0.00021599,2]
[312099031,1705618395178,158.80468362,0.00021599,2]
[312099032,1705618395211,155.0,0.00021599,2]
[312099033,1705618395433,234.89781562,0.00021599,2]
[312099034,1705618395838,353.24893094,0.00021599,2]
[312099035,1705618395876,155.0,0.00021599,2]
[312099036,1705618395962,155.16612944,0.00021599,2]
[312099037,1705618396005,376.78302695,0.00021599,2]
[312099038,1705618396033,5097.91782356,0.00021599,2]
[312099039,1705618396193,220.30306813,0.00021599,2]
[312099040,1705618396272,326.48533003,0.00021599,2]
[312099041,1705618396511,305.66016086,0.00021599,2]
[312099042,1705618396624,155.00697621,0.00021599,2]
[312099043,1705618396650,155.35930712,0.00021599,2]
[312099044,1705618396731,156.36256193,0.00021599,2]
[312099045,1705618396766,155.61676028,0.00021599,2]
[312099046,1705618396823,589.16302208,0.00021599,2]
[312099047,1705618396904,1915.18587891,0.00021599,2]
[312099048,1705618397467,3106.90634424,0.00021599,2]
[312099049,1705618397709,177.23300324,0.00021599,2]
[312099050,1705618397739,163.69448281,0.00021599,2]
[312099051,1705618397776,159.48397052,0.00021599,2]
[312099052,1705618397803,155.14275381,0.00021599,2]
[312099053,1705618397834,155.0,0.00021599,2]
[312099054,1705618397866,7781.2432034,0.00021599,2]
[312099055,1705618397935,4350.07010966,0.00021599,2]
[312099056,1705618397964,160.72539687,0.00021599,2]
[312099057,1705618398703,156.7679582,0.00021599,2]
[312099058,1705618398732,155.70194565,0.00021599,2]
[312099059,1705618398823,1057.51224713,0.00021599,2]
[312099061,1705618399101,846.8786514,0.00021599,2]
[312099062,1705618399256,156.73356239,0.00021599,2]
[312099063,1705618400066,100000.0,0.00021501,2]
[312099064,1705618400224,309.11405151,0.00021599,2]
[312099065,1705618400738,308.0958427,0.00021599,2]
[312099066,1705618400898,318.71536209,0.00021599,2]
[312099067,1705618401057,156.83636382,0.00021599,2]
[312099068,1705618401146,155.0,0.00021599,2]
[312099069,1705618401279,155.0,0.00021599,2]
[312099070,1705618401453,155.0,0.00021599,2]
[312099071,1705618401649,196.8387694,0.00021599,2]
[312099072,1705618401704,1248.20684203,0.00021599,2]
[312099073,1705618401977,10652.106,0.00021501,2]
[312099074,1705618402005,263.27381778,0.00021599,2]
[312099075,1705618402093,558.91097309,0.00021599,2]
[312099076,1705618402566,2439.8122743,0.00021599,4]
[312099077,1705618403635,351.70428963,0.00021599,2]
[312099078,1705618404646,272.40603942,0.00021599,2]
[312099079,1705618405087,158.77627144,0.00021599,2]
[312099080,1705618405593,155.0,0.00021599,2]
[312099081,1705618405679,155.37542855,0.00021599,2]
[312099082,1705618405729,1205.54075095,0.00021599,2]
[312099083,1705618405791,758.28770128,0.00021599,2]
[312099084,1705618406541,155.00003825,0.00021597,2]
[312099085,1705618406750,193.9880117,0.00021599,2]
[312099086,1705618407013,5236.35569325,0.00021599,5]
[312099087,1705618409187,363.07242414,0.00021599,2]
[312099088,1705618409359,672422.95981423,0.00021599,2]
[312099089,1705618409716,500.0,0.00021501,2]
[312099090,1705618409853,155.94960001,0.00021599,2]
[312099091,1705618410249,497.14453253,0.00021599,2]
[312099092,1705618410492,864.54645351,0.00021599,2]
[312099093,1705618411119,503.84036235,0.00021599,2]
[312099094,1705618411691,243.26220935,0.00021599,2]
[312099095,1705618414342,214.9954,0.00021501,2]
[312099096,1705618416904,1906.87078782,0.00021599,2]
[312099098,1705618419145,155.0,0.00021599,2]
[312099099,1705618419198,319.7552,0.00021504,2]
[312099100,1705618420886,424.99664513,0.00021599,2]
[312099108,1705618462917,810.95,0.00021099,2]
[312099109,1705618463135,810.95,0.00021266,2]
[312099110,1705618463386,810.95,0.00021432,2]
[312099111,1705618463610,810.95,0.00021599,2]
[312099113,1705618474417,151.9,0.00021187,2]
[312099114,1705618474836,151.9,0.00021252,2]
[312099115,1705618475057,151.9,0.00021317,2]
[312099116,1705618475272,151.9,0.00021382,2]
[312099117,1705618475495,151.9,0.00021446,2]
[312099118,1705618475709,151.9,0.00021511,2]
[312099119,1705618476271,151.9,0.00021576,2]
[312099120,1705618484092,811.1716,0.00021501,2]
[312099121,1705618484583,11895.6308,0.00021501,2]
[312099122,1705618495516,1000.0,0.00021501,2]
[312099123,1705618503875,1793.08303871,0.00021599,2]
[312099124,1705618506748,200.0,0.00021599,2]
[312099125,1705618506983,1000.0,0.00021501,2]
[312099126,1705618516159,39848.2861,0.00021501,2]
[312099127,1705618527183,5000.0,0.00021501,2]
[312099130,1705618543015,409.98,0.00018963,2]
[312099131,1705618543222,166.64,0.00020881,2]
[312099132,1705618543542,409.98,0.00021227,2]
[312099133,1705618558513,21670.57,0.00020871,2]
[312099134,1705618574997,500.0,0.00021501,2]
[312099135,1705618579948,179.16,0.0002086,10]
[312099136,1705618589873,2000.0,0.0002086,2]
[312099137,1705618640086,1000.0,0.00021501,2]
[312099138,1705618687074,250.0,0.00020844,2]
[312099139,1705618702031,176.3,0.00020698,2]
[312099140,1705618703349,176.3,0.00021246,2]
[312099141,1705618713473,812.08455662,0.000212,2]
[312099142,1705618716017,256.89,0.000212,2]
[312099143,1705618717313,510.78,0.00021337,2]
[312099144,1705618729851,763.71056809,0.00021599,2]
[312099145,1705618740748,500.0,0.00021598,2]
[312099146,1705618744373,5215.40332548,0.00021599,2]
[312099147,1705618777720,849.63,0.00020804,2]
[312099162,1705618805547,1000.0,0.00021598,2]
[312099177,1705618828041,200.0,0.00020798,2]
[312099183,1705618849536,159.12,0.00021006,2]
[312099184,1705618849941,159.12,0.00021335,2]
[312099186,1705618864553,2500.0,0.00021598,2]
[312099191,1705618905609,500.0,0.00021598,2]
[312099192,1705618912992,151.9,0.00020951,2]
[312099193,1705618913396,151.9,0.0002106,2]
[312099194,1705618913813,151.9,0.00021169,2]
[312099195,1705618914032,151.9,0.00021278,2]
[312099196,1705618914246,151.9,0.00021388,2]
[312099197,1705618914485,151.9,0.00021497,2]
[312099201,1705618963026,3217.42107117,0.00021598,2]
[312099202,1705619019688,22495.88,0.00020768,2]
[312099203,1705619039038,402.39,0.0001885,2]
[312099204,1705619039560,402.39,0.00021114,2]
[312099205,1705619065221,1091.36,0.00020768,2]
[312099206,1705619070171,7568.27951555,0.00021598,2]
[312099207,1705619121526,2500.0,0.00021598,2]
[312099208,1705619139334,243.73456166,0.00020688,2]
[312099209,1705619152789,610.96845448,0.00021598,2]
[312099210,1705619156889,2815.2434373,0.00021598,2]
[312099240,1705619269820,840.0,0.00020764,2]
[312099241,1705619275501,150.0,0.00020953,2]
[312099242,1705619282914,869.87,0.00020774,2]
[312099243,1705619290536,195.7,0.00020767,2]
[312099244,1705619320632,176.3,0.00020698,2]
[312099245,1705619321931,176.3,0.00021246,2]
[312099261,1705619339139,167.0230573,0.00021598,2]
[312099262,1705619340569,200.0,0.00020773,2]
[312099264,1705619343446,150.0,0.000208,2]
[312099288,1705619347906,2463.33800762,0.00021598,2]
[312099310,1705619355332,150.0,0.000208,2]
[312099335,1705619394405,168.68,0.00020794,2]
[312099336,1705619397218,152.63,0.00020949,2]
[312099337,1705619397445,152.63,0.00021168,2]
[312099338,1705619397668,152.63,0.00021386,2]
[312099339,1705619429116,279.29323853,0.00021565,2]
[312099359,1705619432277,-152.63,0.00021604,2]
[312099361,1705619432287,-1800.42388655,0.00021643,2]
[312099363,1705619432297,-186.19611345,0.00021644,2]
[312099365,1705619432308,-1258.57832661,0.00021644,2]
[312099367,1705619432319,-818.10924833,0.00021644,2]
[312099369,1705619432331,-1808.47631161,0.00021644,2]
[312099370,1705619432340,-159.12,0.00021665,2]
[312099371,1705619432350,-226.16346146,0.00021688,2]
[312099372,1705619432360,-150.0,0.00021695,2]
[312099373,1705619432370,-300.0,0.00021695,2]
[312099374,1705619432379,-160.61277548,0.00021696,2]
[312099375,1705619432389,-2138.69674334,0.00021696,2]
[312099376,1705619432399,-3143.53137679,0.00021696,2]
[312099377,1705619432409,-2538.39933132,0.00021696,2]
[312099378,1705619432421,-789.79170536,0.00021696,2]
[312099379,1705619432430,-1074.75735257,0.00021696,2]
[312099380,1705619432443,-576.23513454,0.00021696,2]
[312099381,1705619432455,-655.14505786,0.00021696,2]
[312099382,1705619432465,-161.72866539,0.00021696,2]
[312099383,1705619432474,-682.07985862,0.00021696,2]
[312099384,1705619432491,-184.95107877,0.00021696,2]
[312099385,1705619432501,-758.72176657,0.00021696,2]
[312099386,1705619432511,-804.62307685,0.00021696,2]
[312099387,1705619432522,-812.42156128,0.00021696,2]
[312099388,1705619432532,-289.13502754,0.00021697,2]
[312099389,1705619432541,-289.13502754,0.00021697,2]
[312099390,1705619432551,-289.13502754,0.00021697,2]
[312099391,1705619432560,-289.13502754,0.00021697,2]
[312099392,1705619432570,-289.13502754,0.00021697,2]
[312099393,1705619432580,-289.13502754,0.00021697,2]
[312099394,1705619432589,-289.13502754,0.00021697,2]
[312099395,1705619432599,-289.13502754,0.00021697,2]
[312099396,1705619432608,-289.13502754,0.00021697,2]
[312099397,1705619432620,-289.13502754,0.00021697,2]
[312099398,1705619432630,-289.13502754,0.00021697,2]
[312099399,1705619432640,-289.13502754,0.00021697,2]
[312099400,1705619432650,-289.13502754,0.00021697,2]
[312099401,1705619432659,-289.13502754,0.00021697,2]
[312099402,1705619432668,-289.13502754,0.00021697,2]
[312099403,1705619432677,-289.13502754,0.00021697,2]
[312099404,1705619432687,-289.13502754,0.00021697,2]
[312099405,1705619432697,-289.13502754,0.00021697,2]
[312099406,1705619432706,-289.13502754,0.00021697,2]
[312099407,1705619432716,-289.13502754,0.00021697,2]
[312099408,1705619432726,-289.13502754,0.00021697,2]
[312099409,1705619432735,-289.13502754,0.00021697,2]
[312099410,1705619432745,-289.13502754,0.00021697,2]
[312099411,1705619432754,-289.13502754,0.00021697,2]
[312099412,1705619432764,-289.13502754,0.00021697,2]
[312099413,1705619432773,-289.13502754,0.00021697,2]
[312099414,1705619432783,-289.13502754,0.00021697,2]
[312099415,1705619432792,-289.13502754,0.00021697,2]
[312099416,1705619432803,-289.13502754,0.00021697,2]
[312099417,1705619432812,-289.13502754,0.00021697,2]
[312099418,1705619432822,-289.13502754,0.00021697,2]
[312099419,1705619432834,-289.13502754,0.00021697,2]
[312099420,1705619432844,-289.13502754,0.00021697,2]
[312099421,1705619432853,-289.13502754,0.00021697,2]
[312099422,1705619432863,-289.13502754,0.00021697,2]
[312099423,1705619432872,-149.65655263,0.00021697,2]
[312099424,1705619432885,-350.34344737,0.00021697,2]
[312099425,1705619432896,-289.57572078,0.00021698,2]
[312099426,1705619432908,-6004.13120219,0.00021698,2]
[312099427,1705619432921,-1216.44,0.00021698,2]
[312099428,1705619432939,-363.0257753,0.00021698,2]
[312099429,1705619432952,-3079.21785668,0.00021698,2]
[312099430,1705619432978,-1075.8,0.00021698,2]
[312099431,1705619432991,-499.16534257,0.00021698,2]
[312099432,1705619433003,-600.65005144,0.00021698,2]
[312099433,1705619433016,-1174.37054762,0.00021698,2]
[312099434,1705619433040,-49459.38271569,0.00021698,2]
[312099435,1705619433052,-538.88,0.00021698,2]
[312099436,1705619433807,-112575.76939092,0.00021698,2]
[312099441,1705619433927,-7109.54364909,0.00021698,2]
[312099442,1705619433939,-524.96989304,0.00021698,2]
[312099445,1705619433951,-410.0968622,0.00021698,2]
[312099447,1705619433964,-457.52,0.00021698,2]
[312099449,1705619433976,-481.792402,0.00021698,2]
[312099476,1705619434226,279.29323851,0.00021573,2]
[312099531,1705619438270,-871159.38039832,0.00021698,2]
[312099532,1705619438279,-150.99,0.00021698,2]
[312099533,1705619438289,-999.99,0.00021698,2]
[312099534,1705619438298,-1022.55,0.00021698,2]
[312099535,1705619438308,-9999.99,0.00021698,2]
[312099536,1705619438318,-784.04,0.00021698,2]
[312099537,1705619438327,-10763.82,0.00021698,2]
[312099538,1705619438337,-499.99,0.00021698,2]
[312099539,1705619438346,-695.39,0.00021698,2]
[312099540,1705619438355,-1310.51,0.00021698,2]
[312099541,1705619438365,-100000.0,0.00021699,2]
[312099542,1705619438374,-1000.0,0.00021699,2]
[312099543,1705619438383,-245000.0,0.00021699,2]
[312099544,1705619438392,-33510.4359,0.00021699,2]
[312099545,1705619438402,-5000.0,0.00021699,2]
[312099546,1705619438410,-39848.2861,0.00021699,2]
[312099547,1705619438420,-220.35900405,0.00021699,2]
[312099548,1705619438429,-9999.99,0.00021699,2]
[312099549,1705619438438,-700.0,0.000217,7]
[312099550,1705619438447,-162.78037958,0.000217,2]
[312099551,1705619438456,-565.4510154,0.000217,2]
[312099552,1705619438465,-187.61169004,0.000217,2]
[312099553,1705619438475,-591.32065608,0.000217,2]
[312099554,1705619438484,-7568.27951546,0.00021716,2]
[312099555,1705619438493,-869.87,0.00021753,2]
[312099556,1705619438502,-810.95,0.00021766,2]
[312099557,1705619438511,-2463.33800759,0.00021784,2]
[312099558,1705619438520,-226.16346146,0.0002179,2]
[312099559,1705619438529,-176.3,0.00021794,2]
[312099560,1705619438538,-180201.14188745,0.00021799,2]
[312099561,1705619438548,-1400.0,0.000218,7]
[312099562,1705619438558,-19129.18123339,0.000218,2]
[312099563,1705619438567,-505714.14246892,0.000218,2]
[312099564,1705619438576,-200.0,0.00021815,2]
[312099565,1705619438585,-152.63,0.00021823,2]
[312099566,1705619438595,-7568.27951546,0.00021835,2]
[312099567,1705619438604,-250.0,0.00021853,2]
[312099568,1705619438613,-150.0,0.00021853,2]
[312099569,1705619438623,-150.0,0.00021853,2]
[312099570,1705619438635,-188.97972367,0.00021899,2]
[312099571,1705619438644,-2100.0,0.000219,7]
[312099572,1705619438655,-740.32849428,0.000219,2]
[312099573,1705619438664,-250.0,0.00021917,2]
[312099574,1705619438674,-10000.0,0.00021918,2]
[312099575,1705619438683,-250.0,0.00021918,2]
[312099576,1705619438692,-11900.0,0.00021918,2]
[312099577,1705619438702,-610.96845444,0.00021924,2]
[312099578,1705619438710,-810.95,0.00021932,2]
[312099579,1705619438720,-7568.27951546,0.00021953,2]
[312099580,1705619438729,-2463.33800759,0.0002197,2]
[312099581,1705619438738,-161.81,0.00021994,2]
[312099582,1705619438747,-159.12,0.00021994,2]
[312099583,1705619438757,-2780.53772112,0.00022,2]
[312099584,1705619438766,-155.0,0.00022,2]
[312099585,1705619438775,-550.0,0.00022,3]
[312099586,1705619438784,-1041.88400935,0.00022,2]
[312099587,1705619438793,-941.08515656,0.00022,2]
[312099588,1705619438802,-150.0,0.00022,2]
[312099589,1705619438811,-200.0,0.00022033,2]
[312099590,1705619438820,-152.63,0.00022041,2]
[312099591,1705619438829,-7568.27951546,0.00022071,2]
[312099592,1705619438838,-810.95,0.00022099,2]
[312099593,1705619438847,-250.0,0.00022127,2]
[312099594,1705619438856,-2463.33800759,0.00022156,2]
[312099595,1705619438865,-7568.27951546,0.0002219,2]
[312099596,1705619438875,-700.11814304,0.000222,2]
[312099597,1705619438885,-500.0,0.00022245,2]
[312099598,1705619438894,-610.96845444,0.00022249,2]
[312099599,1705619438903,-200.0,0.00022253,2]
[312099600,1705619438912,-810.95,0.00022265,2]
[312099601,1705619438922,-220.35900405,0.000223,2]
[312099602,1705619438931,-565.45101538,0.000223,2]
[312099603,1705619438940,-591.32065608,0.000223,2]
[312099604,1705619438949,-7568.27951546,0.00022308,2]
[312099605,1705619438958,-159.12,0.00022323,2]
[312099606,1705619438967,-176.3,0.00022342,2]
[312099607,1705619438976,-2463.33800759,0.00022342,2]
[312099608,1705619438985,-250.0,0.00022401,2]
[312099609,1705619438994,-150.0,0.00022401,2]
[312099610,1705619439003,-7568.27951546,0.00022427,2]
[312099611,1705619439012,-810.95,0.00022432,2]
[312099612,1705619439021,-4071.36,0.00022445,2]
[312099613,1705619439031,-362.36700236,0.000225,2]
[312099614,1705619439041,-2800.0,0.000225,8]
[312099615,1705619439050,-2463.33800759,0.00022528,2]
[312099616,1705619439060,-7568.27951546,0.00022545,2]
[312099617,1705619439069,-150.0,0.00022548,2]
[312099618,1705619439079,-7999.99,0.00022574,3]
[312099619,1705619439088,-610.96845444,0.00022575,2]
[312099620,1705619439097,-810.95,0.00022598,2]
[312099621,1705619439107,-3500.0,0.000226,8]
[312099622,1705619439116,-155.18960536,0.0002261,2]
[312099623,1705619439125,-159.12,0.00022653,2]
[312099624,1705619439135,-7568.27951546,0.00022663,2]
[312099625,1705619439145,-250.0,0.00022675,2]
[312099626,1705619439155,-161.81,0.00022683,2]
[312099627,1705619439164,-700.0,0.000227,8]
[312099628,1705619439174,-155.0,0.00022701,2]
[312099629,1705619439183,-2463.33800759,0.00022714,2]
[312099630,1705619439192,-869.87,0.00022731,2]
[312099631,1705619439201,-810.95,0.00022765,2]
[312099632,1705619439211,-7568.27951546,0.00022782,2]
[312099633,1705619439220,-500.0,0.00022793,2]
[312099634,1705619439230,-700.0,0.000228,8]
[312099635,1705619439239,-155.85,0.00022846,2]
[312099636,1705619439249,-180.0,0.0002285,2]
[312099638,1705619439258,-5905.31542736,0.00022854,2]
[312099640,1705619439267,-280.38547597,0.0002289,2]
[312099642,1705619439276,-500.0,0.00022899,2]
[312099644,1705619439285,-220.35900405,0.000229,2]
[312099646,1705619439294,-5800.0,0.000229,2]
[312099648,1705619439303,-7568.27951546,0.000229,2]
[312099650,1705619439312,-55555.0,0.000229,2]
[312099652,1705619439321,-610.96845444,0.000229,2]
[312099654,1705619439331,-164.35368918,0.000229,2]
[312099656,1705619439341,-162.78037958,0.000229,2]
[312099658,1705619439350,-2463.33800759,0.000229,2]
[312099660,1705619439359,-2286.6432044,0.000229,6]
[312099662,1705619439368,-565.45101538,0.000229,2]
[312099664,1705619439377,-16000.0,0.000229,2]
[312099666,1705619439386,-591.32065608,0.000229,2]
[312099668,1705619439395,-700.0,0.000229,8]
[312099670,1705619439405,-810.95,0.00022932,2]
[312099672,1705619439414,-150.0,0.00022949,2]
[312099674,1705619439423,-45412.37097579,0.0002298,2]
[312099676,1705619439434,-159.12,0.00022982,2]
[312099678,1705619439443,-226.16346146,0.0002299,2]
[312099680,1705619439452,-8467.71637142,0.00023,2]
[312099682,1705619439461,-12111211.75632353,0.00023,2]
[312099684,1705619439470,-907086.96511136,0.00023,2]
[312099687,1705619439480,-575.21,0.00023,2]
[312099688,1705619439489,-810.95,0.00023098,2]
[312099691,1705619439498,-4071.36,0.00023245,2]
[312099693,1705619439507,-810.95,0.00023265,2]
[312099694,1705619439516,-500.0,0.00023288,4]
[312099696,1705619439525,-500.0,0.00023288,4]
[312099698,1705619439534,-573.58743398,0.00023288,4]
[312099700,1705619439544,-500.0,0.00023288,2]
[312099703,1705619439552,-615.09601353,0.00023288,4]
[312099705,1705619439562,-510.91886446,0.00023288,4]
[312099707,1705619439572,-195.56179294,0.00023288,2]
[312099709,1705619439581,-167.77151244,0.00023288,2]
[312099710,1705619439590,-500.0,0.00023288,4]
[312099712,1705619439599,-155.26878171,0.00023288,4]
[312099713,1705619439608,-500.0,0.00023288,4]
[312099715,1705619439617,-212.47984676,0.00023288,2]
[312099716,1705619439628,-422.43795745,0.00023288,2]
[312099717,1705619439638,-500.0,0.00023288,4]
[312099718,1705619439647,-375.49722946,0.00023288,4]
[312099719,1705619439660,-500.0,0.00023288,4]
[312099720,1705619439671,-450.36159469,0.00023288,4]
[312099721,1705619439680,-642.7811153,0.00023288,4]
[312099722,1705619439689,-470.15434041,0.00023288,4]
[312099723,1705619439698,-551.31346592,0.00023288,2]
[312099724,1705619439708,-159.12,0.00023311,2]
[312099725,1705619439717,-500.0,0.00023341,2]
[312099726,1705619439727,-840.0,0.00023359,2]
[312099727,1705619439736,-161.81,0.00023373,2]
[312099728,1705619439746,-402.39,0.00023378,2]
[312099729,1705619439755,-200.0,0.00023398,2]
[312099730,1705619439764,-810.95,0.00023431,2]
[312099731,1705619439773,-150.0,0.00023497,2]
[312099732,1705619439782,-365.0,0.00023582,2]
[312099733,1705619439791,-810.95,0.00023598,2]
[312099734,1705619439800,-159.12,0.00023641,2]
[312099735,1705619439809,-3290.0,0.000237,2]
[312099736,1705619439819,-30421.0,0.000237,2]
[312099737,1705619439828,-869.87,0.0002371,2]
[312099738,1705619439837,-810.95,0.00023764,2]
[312099739,1705619439847,-1000.0,0.00023818,2]
[312099740,1705619439856,-210.0,0.00023864,2]
[312099741,1705619439865,-500.0,0.00023889,2]
[312099742,1705619439874,-810.95,0.00023931,2]
[312099743,1705619439883,-159.12,0.0002397,2]
[312099744,1705619439892,-600.0,0.00024,3]
[312099745,1705619439902,-431.53216335,0.00024,2]
[312099746,1705619439911,-201.13102968,0.00024,2]
[312099747,1705619439920,-155.28190917,0.00024,2]
[312099748,1705619439929,-151.61439309,0.00024045,2]
[312099749,1705619439938,-4071.36,0.00024046,2]
[312099750,1705619439948,-161.81,0.00024062,2]
[312099751,1705619439957,-810.95,0.00024098,2]
[312099752,1705619439966,-299.999999,0.000241,2]
[312099753,1705619439975,-810.95,0.00024264,2]
[312099754,1705619439983,-167.0,0.00024297,2]
[312099755,1705619439992,-159.12,0.00024299,2]
[312099756,1705619440001,-500.0,0.00024437,2]
[312099757,1705619440010,-155.85,0.00024462,2]
[312099758,1705619440019,-150.49609074,0.00024593,2]
[312099759,1705619440028,-159.12,0.00024629,2]
[312099760,1705619440038,-250.0,0.00024658,2]
[312099761,1705619440047,-150.0,0.00024658,2]
[312099763,1705619440057,-150.0,0.00024658,2]
[312099765,1705619440066,-150.0,0.00024658,2]
[312099767,1705619440075,-150.0,0.00024658,2]
[312099769,1705619440084,-150.0,0.00024658,2]
[312099770,1705619440093,-150.0,0.00024658,2]
[312099771,1705619440102,-150.0,0.00024658,2]
[312099772,1705619440112,-150.0,0.00024658,2]
[312099773,1705619440121,-150.0,0.00024658,2]
[312099774,1705619440130,-150.0,0.00024658,2]
[312099775,1705619440139,-150.0,0.00024658,2]
[312099776,1705619440149,-150.0,0.00024658,2]
[312099777,1705619440160,-150.0,0.00024658,2]
[312099778,1705619440170,-150.0,0.00024658,2]
[312099779,1705619440179,-150.0,0.00024658,2]
[312099780,1705619440189,-150.0,0.00024658,2]
[312099781,1705619440199,-150.0,0.00024658,2]
[312099782,1705619440208,-150.0,0.00024658,2]
[312099783,1705619440435,-150.0,0.00024658,2]
[312099784,1705619440445,-151.72289899,0.00024658,2]
[312099785,1705619440454,-869.87,0.00024688,2]
[312099786,1705619440464,-161.81,0.00024752,2]
[312099787,1705619440473,-4071.36,0.00024847,2]
[312099788,1705619440482,-159.12,0.00024958,2]
[312099789,1705619440491,-613.58,0.00024985,2]
[312099790,1705619440501,-158.67264273,0.00025,2]
[312099791,1705619440510,-933.68908946,0.00025,2]
[312099792,1705619440520,-1584.10702682,0.00025,2]
[312099793,1705619440528,-202.02493081,0.00025,2]
[312099794,1705619440538,-1248.86230478,0.00025,2]
[312099795,1705619440548,-303.46202419,0.00025,2]
[312099796,1705619440557,-167.37478937,0.00025,2]
[312099797,1705619440566,-2002.75826668,0.00025,2]
[312099798,1705619440575,-4269.32574679,0.0002509,2]
[312099799,1705619440584,-167.0,0.00025099,2]
[312099800,1705619440593,-161.81,0.00025442,2]
[312099801,1705619440602,-402.39,0.00025642,2]
[312099802,1705619440612,-869.87,0.00025666,2]
[312099803,1705619440622,-635.77,0.00025699,2]